fUSD/lending_fUSD_20250502
["ID","MTS","AMOUNT","RATE_DAILY","PERIOD"]
[359631019,1746197432098,-48036.22041452,0.00019768,2]
[359631023,1746197432125,-463.33,0.00019767,2]
[359631025,1746197432135,-1534.67196194,0.00019768,2]
[359631028,1746197432156,-641.60804426,0.00019768,2]
[359631080,1746197437421,-177.05047637,0.0001968,2]
[359631081,1746197437431,-450.0,0.00019767,2]
[359631082,1746197437441,-137.43444513,0.00019768,2]
[359631083,1746197437610,-12364.6089457,0.00019768,2]
[359631084,1746197437623,-559.84428601,0.00019768,2]
[359631110,1746197438023,367.92803635,0.000309,60]
[359631258,1746197439586,-494.9270659,0.00019768,2]
[359631262,1746197439614,-447.72946,0.00019768,2]
[359631265,1746197439626,-55050.08537654,0.00019768,2]
[359631268,1746197439639,-625.11,0.00019768,2]
[359631270,1746197439649,-8789.27,0.00019768,2]
[359631272,1746197439659,-591.58,0.00019768,2]
[359631274,1746197439669,-616.99,0.00019768,2]
[359631276,1746197439679,-745.43,0.00019768,2]
[359631278,1746197439688,-474.69,0.00019768,2]
[359631280,1746197439698,-6802.55,0.00019768,2]
[359631282,1746197439708,-450.0,0.00019768,2]
[359631284,1746197439718,-614.98,0.00019768,2]
[359631286,1746197439730,-450.0,0.00019768,2]
[359631288,1746197439739,-428.82262756,0.00019768,2]
[359631290,1746197439749,-450.0,0.00019768,2]
[359631292,1746197439759,-694.27,0.00019768,2]
[359631294,1746197439769,-35585.84,0.00019768,2]
[359631296,1746197439778,-566.86,0.00019768,2]
[359631298,1746197439788,-450.0,0.00019768,2]
[359631300,1746197439798,-450.0,0.00019768,2]
[359631302,1746197439807,-450.0,0.00019768,2]
[359631304,1746197439816,-2382.53,0.00019768,2]
[359631306,1746197439826,-450.0,0.00019768,2]
[359631308,1746197439835,-450.0,0.00019768,2]
[359631310,1746197439845,-450.0,0.00019768,2]
[359631312,1746197439855,-506.1,0.00019768,2]
[359631314,1746197439865,-450.0,0.00019768,2]
[359631316,1746197439875,-477.43,0.00019768,2]
[359631318,1746197439887,-1284.2,0.00019768,2]
[359631320,1746197439896,-450.0,0.00019768,2]
[359631322,1746197439906,-725.14,0.00019768,2]
[359631324,1746197439916,-450.0,0.00019768,2]
[359631326,1746197439926,-450.0,0.00019768,2]
[359631328,1746197439936,-171.95352061,0.00019769,2]
[359631330,1746197439946,-450.0,0.00019769,2]
[359631332,1746197439955,-300.0,0.00019769,2]
[359631334,1746197439965,-224.84445446,0.00019769,2]
[359631336,1746197439975,-450.0,0.00019769,2]
[359631338,1746197439984,-789.92,0.00019769,2]
[359631340,1746197439994,-450.0,0.00019769,2]
[359631342,1746197440004,-450.0,0.00019769,2]
[359631344,1746197440013,-650.43,0.00019769,2]
[359631346,1746197440022,-450.0,0.00019769,2]
[359631348,1746197440032,-450.0,0.00019769,2]
[359631350,1746197440042,-450.0,0.00019769,2]
[359631352,1746197440051,-450.0,0.00019769,2]
[359631354,1746197440061,-1987.86,0.00019769,2]
[359631356,1746197440070,-450.0,0.00019769,2]
[359631358,1746197440079,-482.41234061,0.00019769,2]
[359631360,1746197440089,-450.0,0.00019769,2]
[359631362,1746197440098,-488.54320447,0.00019769,2]
[359631364,1746197440107,-450.0,0.00019769,2]
[359631366,1746197440117,-725.45,0.00019769,2]
[359631368,1746197440127,-980.04,0.00019769,2]
[359631369,1746197440138,-450.0,0.00019769,2]
[359631372,1746197440148,-450.0,0.00019769,2]
[359631374,1746197440157,-450.0,0.00019769,2]
[359631376,1746197440167,-450.0,0.00019769,2]
[359631378,1746197440176,-450.0,0.00019769,2]
[359631380,1746197440185,-450.0,0.00019769,2]
[359631381,1746197440195,-450.0,0.00019769,2]
[359631384,1746197440205,-450.0,0.00019769,2]
[359631385,1746197440215,-450.0,0.00019769,2]
[359631387,1746197440224,-472.99,0.00019769,2]
[359631389,1746197440234,-3223.56,0.00019769,2]
[359631391,1746197440244,-685.7,0.00019769,2]
[359631393,1746197440253,-450.0,0.00019769,2]
[359631395,1746197440263,-450.0,0.00019769,2]
[359631397,1746197440272,-731.56,0.00019769,2]
[359631399,1746197440282,-450.0,0.00019769,2]
[359631401,1746197440292,-747.04,0.00019769,2]
[359631403,1746197440301,-450.0,0.00019769,2]
[359631405,1746197440310,-450.0,0.00019769,2]
[359631408,1746197440320,-450.0,0.00019769,2]
[359631410,1746197440330,-671.12,0.00019769,2]
[359631411,1746197440339,-450.0,0.00019769,2]
[359631414,1746197440349,-617.17,0.00019769,2]
[359631416,1746197440359,-450.0,0.00019769,2]
[359631418,1746197440368,-450.0,0.00019769,2]
[359631420,1746197440378,-1410.11,0.00019769,2]
[359631421,1746197440388,-669.43,0.00019769,2]
[359631423,1746197440397,-450.0,0.00019769,2]
[359631425,1746197440406,-450.0,0.00019769,2]
[359631427,1746197440416,-450.0,0.00019769,2]
[359631429,1746197440425,-504.3,0.00019769,2]
[359631431,1746197440434,-450.0,0.00019769,2]
[359631433,1746197440443,-500.0,0.00019769,2]
[359631435,1746197440456,-450.0,0.00019769,2]
[359631437,1746197440465,-450.0,0.00019769,2]
[359631439,1746197440475,-804.46,0.00019769,2]
[359631441,1746197440486,-450.0,0.00019769,2]
[359631443,1746197440497,-1526.16,0.00019769,2]
[359631445,1746197440506,-529.71,0.00019769,2]
[359631447,1746197440516,-2344.03,0.00019769,2]
[359631449,1746197440526,-450.0,0.00019769,2]
[359631451,1746197440535,-450.0,0.00019769,2]
[359631453,1746197440544,-558.93,0.00019769,2]
[359631455,1746197440557,-942.34,0.00019769,2]
[359631457,1746197440566,-738.65,0.00019769,2]
[359631459,1746197440575,-450.0,0.00019769,2]
[359631461,1746197440585,-350.41375353,0.00019769,2]
[359631463,1746197440594,-450.0,0.00019769,2]
[359631465,1746197440603,-391.16393632,0.00019769,2]
[359631467,1746197440612,-450.0,0.00019769,2]
[359631469,1746197440621,-450.0,0.00019769,2]
[359631471,1746197440631,-954.54,0.00019769,2]
[359631473,1746197440641,-509.74,0.00019769,2]
[359631475,1746197440650,-997.31,0.00019769,2]
[359631477,1746197440658,-941.46,0.00019769,2]
[359631479,1746197440668,-459.6,0.00019769,2]
[359631481,1746197440677,-450.0,0.00019769,2]
[359631483,1746197440686,-450.0,0.00019769,2]
[359631485,1746197440696,-857.7,0.00019769,2]
[359631487,1746197440706,-450.0,0.00019769,2]
[359631489,1746197440716,-556.55,0.00019769,2]
[359631491,1746197440727,-591.31,0.00019769,2]
[359631493,1746197440737,-450.0,0.00019769,2]
[359631495,1746197440745,-450.0,0.00019769,2]
[359631497,1746197440756,-504.49,0.00019769,2]
[359631499,1746197440766,-450.0,0.00019769,2]
[359631500,1746197440776,-450.0,0.00019769,2]
[359631503,1746197440786,-450.0,0.00019769,2]
[359631504,1746197440795,-1143.55,0.00019769,2]
[359631507,1746197440805,-450.0,0.00019769,2]
[359631509,1746197440815,-450.0,0.00019769,2]
[359631511,1746197440824,-1500.42,0.00019769,2]
[359631513,1746197440834,-662.74,0.00019769,2]
[359631515,1746197440844,-639.9,0.00019769,2]
[359631517,1746197440854,-696.75,0.00019769,2]
[359631519,1746197440863,-450.0,0.0001977,2]
[359631521,1746197440873,-450.0,0.0001977,2]
[359631523,1746197440884,-450.0,0.0001977,2]
[359631525,1746197440894,-519.7402053,0.0001977,2]
[359631527,1746197440903,-1898.06,0.0001977,2]
[359631529,1746197440912,-450.0,0.0001977,2]
[359631531,1746197440922,-738.37,0.0001977,2]
[359631533,1746197440932,-591.61,0.0001977,2]
[359631535,1746197440942,-450.0,0.0001977,2]
[359631537,1746197440952,-694.75,0.0001977,2]
[359631538,1746197440962,-450.0,0.0001977,2]
[359631539,1746197440972,-450.0,0.0001977,2]
[359631540,1746197440983,-450.0,0.0001977,2]
[359631541,1746197440993,-450.0,0.0001977,2]
[359631542,1746197441003,-450.0,0.0001977,2]
[359631544,1746197441014,-450.0,0.0001977,2]
[359631546,1746197441024,-450.0,0.0001977,2]
[359631547,1746197441035,-554.76,0.0001977,2]
[359631548,1746197441045,-1121.13,0.0001977,2]
[359631549,1746197441056,-940.0,0.0001977,2]
[359631550,1746197441065,-3085.8,0.0001977,2]
[359631551,1746197441075,-485.66,0.0001977,2]
[359631552,1746197441086,-1350.31,0.0001977,2]
[359631553,1746197441096,-450.0,0.0001977,2]
[359631554,1746197441106,-1113.24,0.0001977,2]
[359631555,1746197441115,-1113.24,0.0001977,2]
[359631556,1746197441124,-2815.03,0.0001977,2]
[359631557,1746197441135,-450.0,0.0001977,2]
[359631558,1746197441145,-450.0,0.0001977,2]
[359631559,1746197441155,-909.41,0.0001977,2]
[359631560,1746197441164,-493.5,0.0001977,2]
[359631561,1746197441174,-450.0,0.0001977,2]
[359631562,1746197441189,-676.14,0.0001977,2]
[359631563,1746197441198,-1817.35393724,0.00019771,2]
[359631564,1746197441208,-2011.99255353,0.00019772,2]
[359631565,1746197441217,-543.3110312,0.00019773,2]
[359631566,1746197441227,-500.87017698,0.00019773,2]
[359631567,1746197441236,-150.0,0.00019774,2]
[359631568,1746197441246,-150.0,0.00019778,2]
[359631569,1746197441256,-150.0,0.00019779,2]
[359631570,1746197441266,-150.0,0.0001978,2]
[359631571,1746197441275,-150.0,0.0001978,2]
[359631572,1746197441285,-150.0,0.00019782,2]
[359631573,1746197441294,-150.0,0.00019785,2]
[359631574,1746197441303,-150.0,0.00019787,2]
[359631575,1746197441313,-150.0,0.00019788,2]
[359631576,1746197441323,-150.0,0.0001979,2]
[359631577,1746197441332,-150.0,0.00019795,2]
[359631578,1746197441341,-1817.35393724,0.00019797,2]
[359631580,1746197441350,-150.0,0.00019797,2]
[359631581,1746197441360,-2011.99255353,0.00019797,2]
[359631583,1746197441370,-1719.2617867,0.00019799,2]
[359631585,1746197441379,-198.66544235,0.000198,2]
[359631586,1746197441392,-150.0,0.000198,2]
[359631587,1746197441402,-1000.0,0.000198,2]
[359631588,1746197441411,-150.0,0.00019802,2]
[359631589,1746197441421,-150.0,0.00019804,2]
[359631590,1746197441430,-150.0,0.00019806,2]
[359631591,1746197441440,-150.0,0.00019808,2]
[359631592,1746197441451,-150.0,0.00019808,2]
[359631593,1746197441461,-500.0,0.00019808,2]
[359631594,1746197441470,-423.91326703,0.0001981,2]
[359631595,1746197441479,-150.0,0.0001981,2]
[359631596,1746197441488,-150.0,0.00019813,2]
[359631597,1746197441498,-150.0,0.00019822,2]
[359631598,1746197441507,-1817.35393724,0.00019823,2]
[359631599,1746197441517,-150.0,0.00019823,2]
[359631600,1746197441527,-2011.99255353,0.00019823,2]
[359631601,1746197441537,-150.0,0.00019827,2]
[359631602,1746197441547,-150.0,0.00019831,2]
[359631603,1746197441556,-150.0,0.00019835,2]
[359631604,1746197441565,-150.0,0.00019837,2]
[359631605,1746197441575,-500.0,0.0001984,2]
[359631606,1746197441584,-2000.0,0.0001984,2]
[359631607,1746197441594,-200.0,0.0001984,2]
[359631608,1746197441604,-150.0,0.00019841,2]
[359631609,1746197441613,-150.0,0.00019842,2]
[359631610,1746197441623,-150.0,0.00019843,2]
[359631611,1746197441633,-150.0,0.00019843,2]
[359631612,1746197441642,-150.0,0.00019844,2]
[359631613,1746197441651,-150.0,0.00019844,2]
[359631614,1746197441660,-150.0,0.00019848,2]
[359631615,1746197441670,-150.0,0.00019848,2]
[359631616,1746197441679,-1817.35393724,0.00019848,2]
[359631617,1746197441688,-2011.99255353,0.00019849,2]
[359631618,1746197441697,-150.0,0.00019853,2]
[359631619,1746197441707,-150.0,0.00019853,2]
[359631620,1746197441716,-150.0,0.00019853,2]
[359631621,1746197441726,-150.0,0.00019856,2]
[359631622,1746197441736,-150.0,0.00019862,2]
[359631623,1746197441745,-150.0,0.00019863,2]
[359631624,1746197441756,-1817.35393724,0.00019874,2]
[359631625,1746197441767,-2011.99255353,0.00019874,2]
[359631626,1746197441777,-150.0,0.00019878,2]
[359631627,1746197441787,-150.0,0.00019878,2]
[359631628,1746197441798,-150.0,0.00019879,2]
[359631629,1746197441807,-150.0,0.00019879,2]
[359631630,1746197441817,-150.0,0.00019882,2]
[359631631,1746197441826,-150.0,0.00019889,2]
[359631632,1746197441836,-150.0,0.00019891,2]
[359631633,1746197441846,-12500.0,0.00019891,2]
[359631634,1746197441855,-5800.0,0.00019892,2]
[359631635,1746197441865,-196.66214301,0.00019899,2]
[359631636,1746197441874,-975.66974229,0.000199,2]
[359631637,1746197441884,-261.27175557,0.000199,2]
[359631638,1746197441894,-12500.0,0.000199,2]
[359631639,1746197441903,-6796.42156826,0.000199,2]
[359631640,1746197441913,-163.57518956,0.000199,2]
[359631641,1746197441923,-5800.0,0.000199,2]
[359631642,1746197441932,-2011.99255353,0.000199,2]
[359631643,1746197441942,-183.35052335,0.000199,2]
[359631644,1746197441951,-1817.35393724,0.000199,2]
[359631645,1746197441960,-196.66214301,0.000199,2]
[359631646,1746197441970,-913.11972996,0.000199,2]
[359631647,1746197441979,-297.05834318,0.000199,2]
[359631648,1746197441988,-189.39229872,0.000199,3]
[359631649,1746197441998,-1000.0,0.000199,2]
[359631650,1746197442007,-150.0,0.00019901,2]
[359631651,1746197442018,-150.0,0.00019904,2]
[359631652,1746197442029,-150.0,0.00019908,2]
[359631653,1746197442039,-150.0,0.00019915,2]
[359631654,1746197442048,-150.0,0.00019919,2]
[359631655,1746197442057,-165.80083387,0.00019922,2]
[359631656,1746197442067,-388.941,0.00019922,2]
[359631657,1746197442078,-150.0,0.00019924,2]
[359631658,1746197442087,-150.0,0.00019924,2]
[359631659,1746197442096,-150.0,0.00019932,2]
[359631660,1746197442106,-150.0,0.00019937,2]
[359631661,1746197442115,-150.0,0.00019939,2]
[359631662,1746197442125,-150.0,0.0001994,2]
[359631663,1746197442135,-150.0,0.00019943,2]
[359631664,1746197442145,-151.0,0.00019943,2]
[359631665,1746197442154,-150.0,0.00019944,2]
[359631666,1746197442163,-150.0,0.00019944,2]
[359631667,1746197442173,-150.0,0.00019944,2]
[359631668,1746197442183,-150.0,0.00019945,2]
[359631669,1746197442193,-150.0,0.00019946,2]
[359631670,1746197442202,-207.4,0.00019953,2]
[359631671,1746197442212,-766.0,0.00019954,2]
[359631672,1746197442223,-151.0,0.00019954,2]
[359631673,1746197442232,-151.0,0.00019954,2]
[359631674,1746197442242,-668.65185757,0.00019954,2]
[359631675,1746197442252,-797.0,0.00019955,2]
[359631676,1746197442261,-4006.0,0.00019955,2]
[359631678,1746197442272,-6753.0,0.00019955,2]
[359631681,1746197442282,-153.0,0.00019955,2]
[359631684,1746197442291,-878.0,0.00019955,2]
[359631686,1746197442301,-150.0,0.00019956,2]
[359631688,1746197442310,-150.0,0.00019962,2]
[359631689,1746197442320,-150.0,0.00019964,2]
[359631692,1746197442330,-150.0,0.00019967,2]
[359631693,1746197442340,-150.0,0.00019969,2]
[359631694,1746197442350,-150.0,0.00019969,2]
[359631695,1746197442359,-185.86498536,0.00019973,2]
[359631696,1746197442368,-501.47327578,0.00019973,2]
[359631697,1746197442377,-306.32642117,0.00019973,2]
[359631698,1746197442387,-500.0,0.00019973,2]
[359631699,1746197442397,-500.0,0.00019973,2]
[359631700,1746197442406,-500.0,0.00019973,2]
[359631701,1746197442416,-500.87742497,0.00019973,2]
[359631702,1746197442425,-500.0,0.00019973,2]
[359631703,1746197442434,-500.0,0.00019973,2]
[359631704,1746197442444,-500.0,0.00019973,2]
[359631705,1746197442456,-150.0,0.00019973,2]
[359631706,1746197442466,-150.0,0.00019974,2]
[359631709,1746197442475,-150.0,0.00019975,2]
[359631711,1746197442485,-150.0,0.00019977,2]
[359631713,1746197442495,-150.0,0.00019978,2]
[359631715,1746197442504,-150.0,0.00019983,2]
[359631717,1746197442514,-150.0,0.00019985,2]
[359631718,1746197442524,-500.0,0.00019985,2]
[359631719,1746197442536,-9776.5343644,0.00019986,2]
[359631720,1746197442545,-69539.7186816,0.00019986,2]
[359631721,1746197442555,-2814.016585,0.00019986,2]
[359631722,1746197442564,-507.4849022,0.00019986,2]
[359631723,1746197442573,-150.0,0.0001999,2]
[359631724,1746197442583,-217.11897616,0.0001999,2]
[359631725,1746197442593,-217.11897616,0.0001999,2]
[359631726,1746197442602,-150.0,0.00019991,2]
[359631727,1746197442612,-150.0,0.00019991,2]
[359631728,1746197442622,-150.0,0.00019996,2]
[359631729,1746197442631,-500.0,0.00019998,2]
[359631730,1746197442642,-500.0,0.00019999,2]
[359631731,1746197442652,-666.0,0.00019999,2]
[359631732,1746197442661,-300.0,0.00019999,2]
[359631734,1746197442670,-1113.24,0.00019999,2]
[359631736,1746197442680,-1113.24,0.00019999,2]
[359631738,1746197442690,-1113.24,0.00019999,2]
[359631740,1746197442700,-1113.24,0.00019999,2]
[359631742,1746197442709,-1113.24,0.00019999,2]
[359631744,1746197442718,-1113.24,0.00019999,2]
[359631745,1746197442727,-1113.24,0.00019999,2]
[359631746,1746197442738,-1113.24,0.00019999,2]
[359631747,1746197442748,-1113.24,0.00019999,2]
[359631748,1746197442761,-1113.24,0.00019999,2]
[359631749,1746197442771,-1113.24,0.00019999,2]
[359631750,1746197442781,-1113.24,0.00019999,2]
[359631751,1746197442791,-1113.24,0.00019999,2]
[359631752,1746197442800,-1113.24,0.00019999,2]
[359631753,1746197442810,-1113.24,0.00019999,2]
[359631754,1746197442819,-1113.24,0.00019999,2]
[359631755,1746197442829,-1113.24,0.00019999,2]
[359631756,1746197442838,-1113.24,0.00019999,2]
[359631757,1746197442847,-1113.24,0.00019999,2]
[359631758,1746197442857,-1113.24,0.00019999,2]
[359631759,1746197442867,-1113.24,0.00019999,2]
[359631760,1746197442876,-1113.41570618,0.00019999,2]
[359631761,1746197442886,-500.0,0.00019999,2]
[359631762,1746197442895,-500.0,0.00019999,2]
[359631763,1746197442905,-500.0,0.00019999,2]
[359631765,1746197442914,-500.0,0.00019999,2]
[359631766,1746197442924,-500.0,0.00019999,2]
[359631769,1746197442935,-500.0,0.00019999,2]
[359631770,1746197442944,-500.0,0.00019999,2]
[359631772,1746197442953,-480.10416411,0.00019999,2]
[359631774,1746197442963,-692.25841914,0.0002,2]
[359631776,1746197442972,-356316.98814539,0.0002,2]
[359631778,1746197442981,-2000.0,0.0002,4]
[359631780,1746197442990,-2000.0,0.0002,4]
[359631782,1746197442999,-2000.0,0.0002,4]
[359631784,1746197443009,-2000.0,0.0002,4]
[359631786,1746197443018,-2000.0,0.0002,4]
[359631788,1746197443027,-2000.0,0.0002,4]
[359631790,1746197443037,-91405.69575233,0.0002,2]
[359631792,1746197443046,-3958906.7377392,0.0002,2]
[359631799,1746197443643,-450.0,0.00019768,2]
[359631800,1746197443653,-1423.9655343,0.0002,2]
[359631801,1746197443664,-472.837485,0.0002,2]
[359631802,1746197443712,-36973.51585096,0.0002,2]
[359631803,1746197443787,-5264.25124403,0.0002,2]
[359631804,1746197443802,-21722.26739602,0.0002,2]
[359631805,1746197443813,-3977.73260398,0.0002,2]
[359631806,1746197444382,-450.0,0.00019767,2]
[359631807,1746197444392,-178.49233392,0.00019768,2]
[359631808,1746197444404,-271.50766608,0.00019768,2]
[359631809,1746197444413,-450.0,0.00019768,2]
[359631810,1746197444423,-450.0,0.00019768,2]
[359631811,1746197444432,-450.0,0.00019768,2]
[359631812,1746197444441,-89062.27810033,0.0002,2]
[359631813,1746197444508,-540.5949118,0.0002,2]
[359631814,1746197444519,-539.1455297,0.0002,2]
[359631815,1746197444532,-791.76021265,0.0002,2]
[359631816,1746197444562,-469.5,0.00019767,2]
[359631817,1746197444571,-1407071.32584685,0.0002,2]
[359631818,1746197444582,-1041914.53609426,0.0002,2]
[359631819,1746197444597,-91011.29795913,0.0002,2]
[359631829,1746197445567,-249.642352,0.00019581,2]
[359631830,1746197445577,-512.3,0.00019767,2]
[359631831,1746197445586,-567.05,0.00019767,2]
[359631832,1746197445596,-450.0,0.00019767,2]
[359631833,1746197445605,-3791.46218768,0.0002,2]
[359631834,1746197445617,-3920.96032631,0.0002,2]
[359631835,1746197445628,-559.89313168,0.0002,2]
[359631841,1746197450627,-459.73577494,0.0002,2]
[359631842,1746197450638,-1083.09998,0.0002,2]
[359631843,1746197450667,-1168.944,0.00019955,2]
[359631844,1746197450677,-763.61844196,0.0002,2]
[359631845,1746197450687,-2000.0,0.0002,2]
[359631846,1746197450699,-18376.77629069,0.0002,2]
[359631847,1746197451051,367.92803635,0.000309,60]
[359631848,1746197458022,367.92803635,0.000309,60]
[359631849,1746197468019,367.92803635,0.000309,60]
[359631850,1746197469279,-467.7683,0.00019567,2]
[359631851,1746197469301,-300.0,0.00019665,2]
[359631852,1746197469331,-837.02840524,0.00019666,2]
[359631853,1746197469362,-837.02840524,0.00019666,2]
[359631854,1746197469392,-558.17488952,0.00019666,2]
[359631855,1746197473788,-278.85351572,0.00019666,2]
[359631856,1746197473818,-837.02840524,0.00019666,2]
[359631857,1746197473847,-837.02840524,0.00019666,2]
[359631858,1746197473876,-837.02840524,0.00019666,2]
[359631859,1746197473906,-210.06126856,0.00019666,2]
[359631860,1746197476557,-626.96713668,0.00019666,2]
[359631861,1746197476587,-837.02840524,0.00019666,2]
[359631862,1746197476616,-837.02840524,0.00019666,2]
[359631863,1746197476645,-698.97605284,0.00019666,2]
[359631864,1746197478018,367.92803635,0.000309,60]
[359631865,1746197479484,-138.0523524,0.00019666,2]
[359631866,1746197479517,-837.02840524,0.00019666,2]
[359631867,1746197479906,-837.02840524,0.00019666,2]
[359631868,1746197479939,-837.02840524,0.00019666,2]
[359631869,1746197479970,-350.86243188,0.00019666,2]
[359631870,1746197482441,-486.16597336,0.00019666,2]
[359631871,1746197482478,-837.02840524,0.00019666,2]
[359631872,1746197482511,-837.02840524,0.00019666,2]
[359631873,1746197482542,-837.02840524,0.00019666,2]
[359631874,1746197482573,-2.74881092,0.00019666,2]
[359631875,1746197486536,-834.27959432,0.00019666,2]
[359631876,1746197486566,-837.02840524,0.00019666,2]
[359631877,1746197486599,-837.02840524,0.00019666,2]
[359631878,1746197486633,-491.6635952,0.00019666,2]
[359631879,1746197489511,-345.36481004,0.00019666,2]
[359631880,1746197489548,-837.02840524,0.00019666,2]
[359631881,1746197489583,-837.02840524,0.00019666,2]
[359631882,1746197489617,-837.02840524,0.00019666,2]
[359631883,1746197489649,-143.54997424,0.00019666,2]
[359631884,1746197495491,-693.478431,0.00019666,2]
[359631885,1746197495522,-837.02840524,0.00019666,2]
[359631886,1746197495551,-837.02840524,0.00019666,2]
[359631887,1746197495579,-632.46475852,0.00019666,2]
[359631888,1746197499414,-204.56364672,0.00019666,2]
[359631889,1746197499448,-837.02840524,0.00019666,2]
[359631890,1746197499488,-837.02840524,0.00019666,2]
[359631891,1746197499528,-837.02840524,0.00019666,2]
[359631892,1746197499562,-284.35113756,0.00019666,2]
[359631893,1746197504597,-552.67726768,0.00019666,2]
[359631894,1746197504626,-837.02840524,0.00019666,2]
[359631895,1746197504657,-837.02840524,0.00019666,2]
[359631896,1746197504686,-773.26592184,0.00019666,2]
[359631897,1746197510569,-2500.0,0.00019668,2]
[359631898,1746197510592,-500.0,0.00019767,2]
[359631899,1746197514065,-53.07,0.00019767,2]
[359631900,1746197514085,-450.0,0.00019767,2]
[359631901,1746197514106,-450.0,0.00019767,2]
[359631902,1746197514127,-450.0,0.00019767,2]
[359631903,1746197514147,-1032.63,0.00019767,2]
[359631904,1746197514169,-564.3,0.00019767,2]
[359631905,1746197517893,-2335.88,0.00019767,2]
[359631906,1746197517914,-412.76787947,0.00019767,2]
[359631907,1746197517936,-251.35212053,0.00019767,2]
[359631908,1746197543046,200.0,0.00019038,2]
[359631909,1746197565214,200.0,0.00018922,2]
[359631917,1746197622073,2019.24,0.00018889,2]
[359631924,1746197650721,1263.26,0.00018804,2]
[359631926,1746197669483,378887.0,0.00032877,60]
[359631928,1746197678551,749.97,0.00018794,2]
[359631930,1746197681604,500.0,0.00032,120]
[359631931,1746197691291,685.98676915,0.00032876,60]
[359631933,1746197697240,247.9,0.00018755,2]
[359631934,1746197701129,250.0,0.00017,2]
[359631936,1746197702226,300.0,0.00019,2]
[359631938,1746197706132,2164.91,0.00019,2]
[359631939,1746197707795,37.19,0.00019,2]
[359631940,1746197707817,2127.72,0.00019,2]
[359631941,1746197709475,872.28,0.00019,2]
[359631942,1746197709497,1292.63,0.00019,2]
[359631943,1746197711243,1707.37,0.00019,2]
[359631944,1746197711269,457.54,0.00019,2]
[359631945,1746197765934,486.07,0.00018774,2]
[359631946,1746197766767,486.07,0.00018779,2]
[359631947,1746197766832,486.07,0.00018784,2]
[359631948,1746197766899,486.07,0.00018789,2]
[359631949,1746197767716,486.07,0.00018794,2]
[359631950,1746197767905,486.07,0.00018799,2]
[359631951,1746197768123,83.58,0.00018804,2]
[359631952,1746197768146,402.49,0.00018804,2]
[359631953,1746197768319,486.07,0.00018809,2]
[359631954,1746197768722,486.07,0.00018814,2]
[359631955,1746197768955,486.07,0.00018819,2]
[359631956,1746197769153,486.07,0.00018824,2]
[359631957,1746197769396,486.07,0.00018828,2]
[359631958,1746197769609,167.16,0.00018833,2]
[359631959,1746197769633,318.91,0.00018833,2]
[359631960,1746197769811,486.07,0.00018838,2]
[359631961,1746197770072,486.07,0.00018843,2]
[359631962,1746197770300,486.07,0.00018848,2]
[359631963,1746197770597,486.07,0.00018853,2]
[359631964,1746197771036,486.07,0.00018858,2]
[359631965,1746197771251,250.74,0.00018863,2]
[359631966,1746197771274,235.33,0.00018863,2]
[359631967,1746197771450,486.07,0.00018868,2]